fUST/lending_fUST_20250610
["ID","MTS","AMOUNT","RATE_DAILY","PERIOD"]
[365221497,1749544248599,-151.0,0.00023,7]
[365221498,1749544248613,-242.174301,0.00023,7]
[365221499,1749544248623,-242.174301,0.00023,7]
[365221500,1749544248633,-151.0,0.00023,7]
[365221501,1749544248643,-151.0,0.00023,7]
[365221502,1749544248654,-151.0,0.00023,7]
[365221503,1749544248664,-151.0,0.00023,7]
[365221504,1749544248674,-702.403516,0.00023,2]
[365221505,1749544248686,-702.403516,0.00023,2]
[365221506,1749544248695,-73289.57582283,0.00023,20]
[365221507,1749544248704,-326.327635,0.00023,7]
[365221508,1749544248714,-326.327635,0.00023,7]
[365221509,1749544248724,-316.0,0.00023,3]
[365221510,1749544248734,-316.0,0.00023,3]
[365221511,1749544248742,-151.0,0.00023,7]
[365221512,1749544248751,-241.685088,0.00023,7]
[365221513,1749544248761,-11858.11761888,0.00023,7]
[365221514,1749544248770,-159.053297,0.00023,7]
[365221515,1749544248780,-744.6,0.00023007,2]
[365221516,1749544248790,-151.0,0.00023013,7]
[365221517,1749544248799,-151.0,0.00023013,7]
[365221518,1749544248809,-161.955937,0.00023013,7]
[365221519,1749544248819,-151.0,0.00023013,7]
[365221520,1749544248829,-151.0,0.00023013,7]
[365221521,1749544248839,-158.564883,0.00023013,7]
[365221522,1749544248849,-460.0,0.00023013,4]
[365221523,1749544248859,-518.16,0.00023013,4]
[365221524,1749544248869,-888.42,0.00023013,4]
[365221525,1749544248878,-460.0,0.00023013,4]
[365221526,1749544248888,-460.0,0.00023013,4]
[365221527,1749544248898,-835.92,0.00023013,4]
[365221528,1749544248909,-460.0,0.00023013,4]
[365221529,1749544248919,-1966.26,0.00023013,4]
[365221530,1749544248930,-937.01,0.00023013,4]
[365221531,1749544248940,-1075.58,0.00023013,4]
[365221532,1749544248950,-460.0,0.00023013,4]
[365221533,1749544248960,-460.0,0.00023013,4]
[365221534,1749544248971,-460.0,0.00023013,4]
[365221535,1749544248981,-671.38,0.00023013,4]
[365221536,1749544248991,-1096.62,0.00023013,4]
[365221537,1749544249001,-460.0,0.00023013,4]
[365221538,1749544249010,-460.0,0.00023013,4]
[365221539,1749544249020,-460.0,0.00023013,4]
[365221540,1749544249030,-161.0,0.00023014,7]
[365221541,1749544249039,-151.0,0.00023014,7]
[365221542,1749544249048,-152.763119,0.00023021,7]
[365221543,1749544249058,-151.0,0.00023029,7]
[365221544,1749544249067,-152.922554,0.00023029,7]
[365221545,1749544249078,-2097.155415,0.00023029,3]
[365221546,1749544249087,-1465.0,0.00023043,7]
[365221547,1749544249096,-201.61560781,0.00023074,8]
[365221548,1749544249106,-151.0,0.00023093,7]
[365221549,1749544249116,-152.185453,0.00023093,7]
[365221550,1749544249126,-161.067334,0.00023093,7]
[365221551,1749544249136,-163.7222236,0.00023096,2]
[365221552,1749544249145,-151.0,0.000231,6]
[365221553,1749544249155,-744.6,0.00023107,3]
[365221554,1749544249166,-393.0,0.00023111,7]
[365221555,1749544249175,-168.0,0.00023119,2]
[365221556,1749544249185,-405.0,0.00023152,2]
[365221557,1749544249195,-1465.0,0.00023166,7]
[365221558,1749544249204,-600.0,0.00023171,2]
[365221559,1749544249214,-200.71821639,0.0002318,3]
[365221560,1749544249226,-215.0738,0.000232,2]
[365221561,1749544249236,-744.6,0.00023207,4]
[365221562,1749544249246,-151.0,0.00023225,7]
[365221563,1749544249255,-242.174301,0.00023225,7]
[365221564,1749544249265,-242.174301,0.00023225,7]
[365221565,1749544249275,-150.125,0.00023232,2]
[365221566,1749544249285,-150.0,0.00023232,2]
[365221567,1749544249295,-150.184,0.00023232,2]
[365221568,1749544249305,-150.0,0.00023232,2]
[365221569,1749544249314,-150.0,0.00023232,2]
[365221570,1749544249324,-460.0,0.00023287,4]
[365221571,1749544249334,-268.0,0.00023287,7]
[365221572,1749544249343,-152.927514,0.00023287,7]
[365221573,1749544249353,-888.42,0.00023287,4]
[365221574,1749544249363,-393.76,0.00023287,4]
[365221575,1749544249373,-460.0,0.00023287,4]
[365221576,1749544249383,-835.92,0.00023287,4]
[365221577,1749544249393,-460.0,0.00023287,4]
[365221578,1749544249402,-1966.26,0.00023287,4]
[365221579,1749544249412,-937.01,0.00023287,4]
[365221580,1749544249422,-1075.58,0.00023287,4]
[365221581,1749544249432,-443.48,0.00023287,4]
[365221582,1749544249443,-460.0,0.00023287,4]
[365221583,1749544249452,-460.0,0.00023287,4]
[365221584,1749544249463,-671.38,0.00023287,4]
[365221585,1749544249474,-1096.62,0.00023287,4]
[365221586,1749544249483,-460.0,0.00023287,4]
[365221587,1749544249493,-460.0,0.00023287,4]
[365221588,1749544249503,-416.24,0.00023287,4]
[365221589,1749544249512,-151.0,0.00023287,7]
[365221590,1749544249522,-1465.0,0.00023289,7]
[365221591,1749544249532,-151.0,0.000233,9]
[365221592,1749544249541,-744.6,0.00023307,3]
[365221593,1749544249551,-201.61560781,0.00023335,9]
[365221594,1749544249560,-393.0,0.00023371,7]
[365221595,1749544249570,-151.0,0.000234,7]
[365221596,1749544249579,-151.0,0.000234,7]
[365221597,1749544249590,-638.0,0.000234,2]
[365221598,1749544249600,-744.6,0.00023407,7]
[365221599,1749544249614,-601.48050061,0.00023412,2]
[365221600,1749544249623,-1465.0,0.00023412,7]
[365221601,1749544249633,-168.0,0.00023475,2]
[365221602,1749544249724,-5000.0,0.00023475,2]
[365221603,1749544249745,-113535.73481975,0.00023499,2]
[365221604,1749544249848,-440.0,0.00021095,4]
[365221605,1749544249858,-1207.86570293,0.00023499,2]
[365221606,1749544249924,-173.26099967,0.00021095,4]
[365221607,1749544249933,-460.0,0.00021095,4]
[365221608,1749544249942,-160.0,0.00021317,2]
[365221609,1749544249952,-1277.24,0.00021369,4]
[365221610,1749544249961,-1234.01876481,0.00021643,4]
[365221611,1749544249974,-43.22123519,0.00021643,4]
[365221612,1749544249984,-151.0,0.00022175,7]
[365221613,1749544249993,-13389.16932431,0.00023499,2]
[365221614,1749544250311,-0.00305718,0.00023499,2]
[365221615,1749544250517,1558.407751,0.00024747,60]
[365221633,1749544272122,642.28573574,0.00017999,2]
[365221634,1749544272150,501.50554918,0.00017999,2]
[365221635,1749544272179,316.7602431,0.00017999,2]
[365221636,1749544272209,500.0,0.00017999,2]
[365221637,1749544272236,500.0,0.00017999,2]
[365221638,1749544279822,500.0,0.00017999,2]
[365221639,1749544279853,500.0,0.00017999,2]
[365221640,1749544279883,500.0,0.00017999,2]
[365221641,1749544279914,500.0,0.00017999,2]
[365221642,1749544279940,500.0,0.00017999,2]
[365221643,1749544279968,500.0,0.00017999,2]
[365221644,1749544279994,178.96501656,0.00017999,2]
[365221645,1749544280023,500.0,0.00017999,2]
[365221646,1749544280051,431.56598868,0.00017999,2]
[365221647,1749544280079,500.0,0.00017999,2]
[365221648,1749544280110,500.0,0.00017999,2]
[365221649,1749544280138,500.0,0.00017999,2]
[365221650,1749544280166,500.0,0.00017999,2]
[365221651,1749544280267,253.22758577,0.00017999,2]
[365221652,1749544280290,246.77241423,0.00017999,2]
[365221653,1749544280324,650.0,0.00017999,2]
[365221654,1749544280350,200.0,0.00017999,2]
[365221655,1749544293216,500.0,0.00017999,2]
[365221656,1749544293244,500.0,0.00017999,2]
[365221657,1749544293376,650.0,0.00017999,2]
[365221658,1749544293405,446.74618864,0.00017999,2]
[365221659,1749544293435,500.0,0.00017999,2]
[365221660,1749544293465,508.65328579,0.00017999,2]
[365221661,1749544293494,500.0,0.00017999,2]
[365221662,1749544293524,500.0,0.00017999,2]
[365221663,1749544293555,500.0,0.00017999,2]
[365221664,1749544293585,500.0,0.00017999,2]
[365221665,1749544293612,500.0,0.00017999,2]
[365221666,1749544293645,500.0,0.00017999,2]
[365221667,1749544293676,392.58089767,0.00017999,2]
[365221668,1749544306304,500.0,0.00017999,2]
[365221669,1749544306331,500.0,0.00017999,2]
[365221670,1749544306357,500.0,0.00017999,2]
[365221671,1749544306389,500.0,0.00017999,2]
[365221672,1749544306422,500.0,0.00017999,2]
[365221673,1749544306464,500.0,0.00017999,2]
[365221674,1749544306501,500.0,0.00017999,2]
[365221675,1749544306530,500.0,0.00017999,2]
[365221676,1749544306562,500.0,0.00017999,2]
[365221677,1749544306596,462.57821367,0.00017999,2]
[365221678,1749544306622,37.42178633,0.00017999,2]
[365221679,1749544306654,410.29068958,0.00017999,2]
[365221680,1749544306685,500.0,0.00017999,2]
[365221681,1749544306719,500.0,0.00017999,2]
[365221682,1749544306748,500.0,0.00017999,2]
[365221683,1749544306788,500.0,0.00017999,2]
[365221684,1749544306821,500.0,0.00017999,2]
[365221685,1749544306851,500.0,0.00017999,2]
[365221686,1749544306886,500.0,0.00017999,2]
[365221687,1749544307122,159.66683611,0.00017999,2]
[365221688,1749544307145,340.33316389,0.00017999,2]
[365221689,1749544315070,500.0,0.00017999,2]
[365221690,1749544315394,500.0,0.00017999,2]
[365221691,1749544315713,500.0,0.00017999,2]
[365221692,1749544316018,500.0,0.00017999,2]
[365221693,1749544316308,500.0,0.00017999,2]
[365221694,1749544316360,649.43470459,0.00017999,2]
[365221695,1749544326992,500.0,0.00017999,2]
[365221696,1749544327050,499.99999999,0.00017999,2]
[365221705,1749544501238,789.0,0.0002474,60]
[365221713,1749544763803,324.265226,0.00013699,2]
[365221735,1749545187778,3795.58542962,0.00018,2]
[365221736,1749545187803,1204.41457038,0.00018,2]
[365221737,1749545221875,-158.163351,0.00018185,2]
[365221743,1749545374516,-160.46656355,0.00018085,3]
[365221744,1749545377507,-143.25912683,0.00018085,3]
[365221746,1749545391769,5000.0,0.00018,2]
[365221780,1749545432235,-5000.0,0.00018186,2]
[365221781,1749545432244,-221.62435964,0.0001837,2]
[365221782,1749545432253,-241.65087843,0.00018469,2]
[365221783,1749545432262,-283.5819768,0.0001847,2]
[365221784,1749545432271,-206.3970992,0.0001872,2]
[365221785,1749545432280,-349.57461,0.00018977,2]
[365221786,1749545432290,-181.273498,0.00019178,2]
[365221787,1749545432299,-402.75146405,0.00019235,2]
[365221788,1749545432308,-1200.0,0.00019816,2]
[365221789,1749545432317,-300.0,0.00019817,2]
[365221790,1749545432327,-297.0,0.00019817,2]
[365221791,1749545432336,-300.0,0.00019817,2]
[365221792,1749545432345,-300.0,0.00019817,2]
[365221793,1749545432354,-300.0,0.00019817,2]
[365221794,1749545432363,-300.0,0.00019817,2]
[365221795,1749545432373,-300.0,0.00019817,2]
[365221796,1749545432382,-937.46429947,0.00019818,2]
[365221797,1749545432391,-1652.65404114,0.00019818,2]
[365221798,1749545432402,-598.16471941,0.00019818,2]
[365221821,1749545438280,-5000.0,0.0001962,2]
[365221822,1749545438290,-5322.21109386,0.00019818,2]
[365221823,1749545438332,-913.23027311,0.00019818,2]
[365221824,1749545438342,-295.26106481,0.00019818,2]
[365221825,1749545438351,-6195.26775978,0.0001983,2]
[365221826,1749545438439,-18704.73224022,0.0001983,2]
[365221827,1749545438449,-185.58755306,0.00019985,2]
[365221828,1749545438459,-766.38,0.00020085,2]
[365221829,1749545438469,-324.265226,0.00020187,2]
[365221830,1749545438479,-204.97111011,0.000202,2]
[365221831,1749545438489,-204.97111004,0.000202,2]
[365221832,1749545438499,-204.97111004,0.000202,2]
[365221834,1749545438512,-204.97111004,0.000202,2]
[365221836,1749545438523,-204.97111004,0.000202,2]
[365221839,1749545438533,-201.461,0.00020292,2]
[365221840,1749545438542,-204.97111004,0.00020329,3]
[365221842,1749545438552,-309.46661719,0.00020462,2]
[365221843,1749545438562,-204.97111004,0.00020614,3]
[365221844,1749545438572,-185.58755301,0.00020652,2]
[365221845,1749545438582,-204.97111004,0.000209,4]
[365221846,1749545438591,-185.0,0.00021,2]
[365221847,1749545438602,-185.0,0.00021,2]
[365221848,1749545438611,-1532.77,0.00021041,2]
[365221849,1749545438620,-500.0,0.00021094,2]
[365221850,1749545438630,-500.0,0.00021094,2]
[365221851,1749545438639,-210.28676641,0.00021094,2]
[365221852,1749545438649,-471.02906896,0.00021094,2]
[365221853,1749545438659,-316.60385607,0.00021094,2]
[365221854,1749545438671,-500.0,0.00021094,2]
[365221855,1749545438681,-160.0,0.00021094,2]
[365221856,1749545438690,-400.0,0.00021095,4]
[365221857,1749545438700,-460.0,0.00021095,4]
[365221858,1749545438710,-500.0,0.00021095,4]
[365221859,1749545438720,-500.0,0.00021095,4]
[365221860,1749545438729,-319.5,0.00021095,4]
[365221861,1749545438739,-460.0,0.00021095,4]
[365221862,1749545438750,-290.87785698,0.00021095,4]
[365221863,1749545438759,-166.6274282,0.00021095,4]
[365221864,1749545438770,-460.0,0.00021095,4]
[365221865,1749545438779,-410.22862226,0.00021095,4]
[365221866,1749545438789,-460.0,0.00021095,4]
[365221867,1749545438798,-460.0,0.00021095,4]
[365221868,1749545438807,-430.77745493,0.00021095,4]
[365221869,1749545438817,-460.0,0.00021095,4]
[365221870,1749545438826,-460.0,0.00021095,4]
[365221871,1749545438836,-460.0,0.00021095,4]
[365221872,1749545438846,-422.72188227,0.00021095,4]
[365221873,1749545438855,-738.88,0.00021095,4]
[365221874,1749545438865,-738.88,0.00021095,4]
[365221875,1749545438875,-738.88,0.00021095,4]
[365221876,1749545438885,-225.67668017,0.00021095,4]
[365221877,1749545438894,-738.88,0.00021095,4]
[365221878,1749545438903,-738.88,0.00021095,4]
[365221879,1749545438913,-460.0,0.00021095,4]
[365221880,1749545438923,-460.0,0.00021095,4]
[365221881,1749545438933,-426.36435969,0.00021095,4]
[365221882,1749545438942,-430.0,0.00021095,4]
[365221883,1749545438952,-460.0,0.00021095,4]
[365221884,1749545438962,-430.0,0.00021095,4]
[365221885,1749545438973,-460.0,0.00021095,4]
[365221886,1749545438984,-401.367419,0.00021095,4]
[365221887,1749545438994,-494.07415984,0.00021095,4]
[365221888,1749545439004,-392.2574852,0.00021095,4]
[365221889,1749545439015,-460.0,0.00021095,4]
[365221890,1749545439025,-460.0,0.00021095,4]
[365221891,1749545439035,-228.13644458,0.00021095,4]
[365221892,1749545439044,-406.08011707,0.00021095,4]
[365221893,1749545439054,-440.0,0.00021095,4]
[365221894,1749545439064,-460.0,0.00021095,4]
[365221895,1749545439074,-150.28,0.00021095,4]
[365221896,1749545439083,-491.07108352,0.00021095,4]
[365221897,1749545439094,-460.0,0.00021095,4]
[365221898,1749545439103,-460.0,0.00021095,4]
[365221899,1749545439113,-460.0,0.00021095,4]
[365221900,1749545439123,-460.0,0.00021095,4]
[365221901,1749545439133,-460.0,0.00021095,4]
[365221902,1749545439143,-460.0,0.00021095,4]
[365221903,1749545439153,-460.0,0.00021095,4]
[365221904,1749545439163,-203.4,0.00021095,4]
[365221905,1749545439173,-460.0,0.00021095,4]
[365221906,1749545439182,-282.45013761,0.00021095,4]
[365221907,1749545439192,-556.91425208,0.00021095,4]
[365221908,1749545439202,-430.0,0.00021095,4]
[365221909,1749545439211,-440.0,0.00021095,4]
[365221910,1749545439221,-460.0,0.00021095,4]
[365221911,1749545439230,-357.33191295,0.00021095,4]
[365221912,1749545439242,-430.0,0.00021095,4]
[365221913,1749545439256,-440.0,0.00021095,4]
[365221914,1749545439266,-402.52417686,0.00021095,4]
[365221915,1749545439275,-440.0,0.00021095,4]
[365221916,1749545439285,-460.0,0.00021095,4]
[365221917,1749545439295,-375.07623181,0.00021095,4]
[365221918,1749545439305,-440.0,0.00021095,4]
[365221919,1749545439314,-440.0,0.00021095,4]
[365221920,1749545439324,-440.0,0.00021095,4]
[365221921,1749545439334,-500.0,0.00021095,4]
[365221922,1749545439344,-460.0,0.00021095,4]
[365221923,1749545439353,-440.0,0.00021095,4]
[365221924,1749545439363,-460.0,0.00021095,4]
[365221925,1749545439373,-430.0,0.00021095,4]
[365221926,1749545439383,-460.0,0.00021095,4]
[365221927,1749545439392,-460.0,0.00021095,4]
[365221928,1749545439402,-460.0,0.00021095,4]
[365221929,1749545439412,-440.0,0.00021095,4]
[365221930,1749545439423,-418.1911264,0.00021095,4]
[365221931,1749545439433,-411.96685191,0.00021095,4]
[365221932,1749545439443,-430.0,0.00021095,4]
[365221933,1749545439453,-440.0,0.00021095,4]
[365221934,1749545439463,-460.0,0.00021095,4]
[365221935,1749545439474,-460.0,0.00021095,4]
[365221936,1749545439484,-460.0,0.00021095,4]
[365221937,1749545439493,-460.0,0.00021095,4]
[365221938,1749545439503,-430.0,0.00021095,4]
[365221939,1749545439513,-500.0,0.00021095,4]
[365221940,1749545439523,-500.0,0.00021095,4]
[365221941,1749545439533,-500.0,0.00021095,4]
[365221942,1749545439544,-500.0,0.00021095,4]
[365221943,1749545439554,-500.0,0.00021095,4]
[365221944,1749545439564,-440.0,0.00021095,4]
[365221945,1749545439574,-310.0,0.00021095,4]
[365221946,1749545439583,-195.17431834,0.00021095,4]
[365221947,1749545439595,-251.23014054,0.00021095,4]
[365221948,1749545439606,-460.0,0.00021095,4]
[365221949,1749545439616,-195.95896585,0.00021095,4]
[365221950,1749545439627,-460.0,0.00021095,4]
[365221951,1749545439636,-460.0,0.00021095,2]
[365221952,1749545439645,-440.0,0.00021095,4]
[365221953,1749545439655,-460.0,0.00021095,4]
[365221954,1749545439664,-440.0,0.00021095,4]
[365221955,1749545439673,-440.0,0.00021095,4]
[365221956,1749545439683,-460.0,0.00021095,4]
[365221957,1749545439692,-430.0,0.00021095,4]
[365221958,1749545439701,-440.0,0.00021095,4]
[365221959,1749545439711,-460.0,0.00021095,4]
[365221960,1749545439721,-460.0,0.00021095,4]
[365221961,1749545439730,-460.0,0.00021095,4]
[365221962,1749545439740,-382.67796825,0.00021095,4]
[365221963,1749545439749,-460.0,0.00021095,4]
[365221964,1749545439759,-440.0,0.00021095,4]
[365221965,1749545439768,-418.62836266,0.00021095,4]
[365221966,1749545439778,-460.0,0.00021095,4]
[365221967,1749545439788,-460.0,0.00021095,4]
[365221968,1749545439798,-430.0,0.00021095,4]
[365221969,1749545439808,-460.0,0.00021095,4]
[365221970,1749545439818,-430.0,0.00021095,4]
[365221971,1749545439829,-460.0,0.00021095,4]
[365221972,1749545439838,-460.0,0.00021095,4]
[365221973,1749545439848,-1098.16,0.00021095,4]
[365221974,1749545439857,-460.0,0.00021095,4]
[365221975,1749545439867,-325.63700617,0.00021095,4]
[365221976,1749545439876,-430.0,0.00021095,4]
[365221977,1749545439886,-460.0,0.00021095,4]
[365221978,1749545439895,-460.0,0.00021095,4]
[365221979,1749545439905,-460.0,0.00021095,4]
[365221980,1749545439915,-847.9,0.00021095,4]
[365221981,1749545439925,-460.0,0.00021095,4]
[365221982,1749545439934,-416.87199236,0.00021095,4]
[365221983,1749545439943,-2343.12,0.00021095,4]
[365221984,1749545439953,-460.0,0.00021095,4]
[365221985,1749545439963,-440.0,0.00021095,4]
[365221986,1749545439974,-460.0,0.00021095,4]
[365221987,1749545439986,-460.0,0.00021095,4]
[365221988,1749545439996,-440.0,0.00021095,4]
[365221989,1749545440006,-332.41880344,0.00021095,4]
[365221990,1749545440016,-460.0,0.00021095,4]
[365221991,1749545440026,-1059.16,0.00021095,4]
[365221992,1749545440036,-460.0,0.00021095,4]
[365221993,1749545440046,-460.0,0.00021095,4]
[365221994,1749545440055,-460.0,0.00021095,4]
[365221995,1749545440066,-460.0,0.00021095,4]
[365221996,1749545440075,-992.63,0.00021095,4]
[365221997,1749545440085,-439.17301178,0.00021095,4]
[365221998,1749545440094,-460.0,0.00021095,4]
[365221999,1749545440105,-400.0,0.00021095,4]
[365222000,1749545440114,-460.0,0.00021095,4]
[365222001,1749545440124,-460.0,0.00021095,4]
[365222002,1749545440134,-460.0,0.00021095,4]
[365222003,1749545440143,-420.00016195,0.00021095,4]
[365222004,1749545440153,-460.0,0.00021095,4]
[365222005,1749545440163,-440.0,0.00021095,4]
[365222006,1749545440173,-666.08,0.00021095,4]
[365222007,1749545440183,-460.0,0.00021095,4]
[365222008,1749545440192,-414.39519091,0.00021095,4]
[365222009,1749545440202,-460.0,0.00021095,4]
[365222010,1749545440212,-460.0,0.00021095,4]
[365222011,1749545440222,-432.97077124,0.00021095,4]
[365222012,1749545440233,-360.0,0.00021095,4]
[365222013,1749545440243,-1081.99,0.00021095,4]
[365222014,1749545440253,-460.0,0.00021095,4]
[365222015,1749545440262,-460.0,0.00021095,4]
[365222016,1749545440272,-490.81705909,0.00021095,4]
[365222017,1749545440282,-460.0,0.00021095,4]
[365222018,1749545440292,-460.0,0.00021095,4]
[365222019,1749545440301,-460.0,0.00021095,4]
[365222020,1749545440312,-460.0,0.00021095,4]
[365222021,1749545440322,-460.0,0.00021095,4]
[365222022,1749545440332,-460.0,0.00021095,4]
[365222023,1749545440342,-460.0,0.00021095,4]
[365222024,1749545440512,-1350.81,0.00021095,4]
[365222025,1749545440522,-460.0,0.00021095,4]
[365222026,1749545440532,-460.0,0.00021095,4]
[365222027,1749545440542,-440.0,0.00021095,4]
[365222028,1749545440551,-356.81,0.000211,2]
[365222029,1749545440561,-404.48731427,0.00021102,4]
[365222030,1749545440571,-204.97111004,0.00021186,4]
[365222031,1749545440581,-888.38849435,0.00021217,2]
[365222032,1749545440591,-519.42,0.00021279,3]
[365222033,1749545440601,-160.0,0.00021284,2]
[365222034,1749545440610,-160.0,0.00021289,2]
[365222035,1749545440621,-160.0,0.00021289,2]
[365222036,1749545440631,-213.1263252,0.00021289,2]
[365222037,1749545440640,-229.6792923,0.00021289,2]
[365222038,1749545440651,-842.5625,0.00021289,2]
[365222039,1749545440661,-160.0,0.00021289,2]
[365222040,1749545440670,-424.12530924,0.00021289,2]
[365222041,1749545440680,-834.9046531,0.00021289,2]
[365222042,1749545440692,-160.0,0.00021289,2]
[365222043,1749545440703,-11858.11761888,0.00021289,2]
[365222044,1749545440713,-738.88,0.00021316,4]
[365222045,1749545440723,-185.58755301,0.00021318,2]
[365222046,1749545440732,-500.0,0.00021352,2]
[365222047,1749545440741,-500.0,0.00021352,2]
[365222048,1749545440751,-346.26,0.00021359,3]
[365222049,1749545440760,-173.13,0.00021359,3]
[365222050,1749545440770,-738.88,0.00021368,4]
[365222051,1749545440780,-460.0,0.00021369,4]
[365222052,1749545440789,-400.0,0.00021369,4]
[365222053,1749545440799,-460.0,0.00021369,4]
[365222054,1749545440810,-460.0,0.00021369,4]
[365222055,1749545440819,-420.0,0.00021369,4]
[365222056,1749545440829,-468.31138332,0.00021369,4]
[365222057,1749545440839,-460.0,0.00021369,4]
[365222058,1749545440848,-448.46,0.00021369,4]
[365222059,1749545440858,-460.0,0.00021369,4]
[365222060,1749545440867,-166.57157576,0.00021369,4]
[365222061,1749545440878,-460.0,0.00021369,4]
[365222062,1749545440887,-440.0,0.00021369,4]
[365222063,1749545440897,-460.0,0.00021369,4]
[365222064,1749545440907,-420.0,0.00021369,4]
[365222065,1749545440916,-460.0,0.00021369,4]
[365222066,1749545440926,-460.0,0.00021369,4]
[365222067,1749545440936,-296.81100998,0.00021369,4]
[365222068,1749545440945,-460.0,0.00021369,4]
[365222069,1749545440955,-593.25,0.00021369,4]
[365222070,1749545440965,-460.0,0.00021369,4]
[365222071,1749545440978,-460.0,0.00021369,4]
[365222072,1749545440988,-460.0,0.00021369,4]
[365222073,1749545440997,-460.0,0.00021369,4]
[365222074,1749545441007,-460.0,0.00021369,2]
[365222075,1749545441018,-460.0,0.00021369,4]
[365222076,1749545441027,-460.0,0.00021369,4]
[365222077,1749545441038,-216.2756213,0.00021369,4]
[365222078,1749545441048,-460.0,0.00021369,4]
[365222079,1749545441060,-440.0,0.00021369,4]
[365222080,1749545441070,-460.0,0.00021369,4]
[365222081,1749545441080,-460.0,0.00021369,4]
[365222082,1749545441090,-460.0,0.00021369,4]
[365222083,1749545441100,-410.0,0.00021369,4]
[365222084,1749545441110,-460.0,0.00021369,4]
[365222085,1749545441120,-1098.16,0.00021369,4]
[365222086,1749545441130,-460.0,0.00021369,4]
[365222087,1749545441140,-460.0,0.00021369,4]
[365222088,1749545441150,-847.9,0.00021369,4]
[365222089,1749545441160,-460.0,0.00021369,4]
[365222090,1749545441170,-2343.12,0.00021369,4]
[365222091,1749545441179,-460.0,0.00021369,4]
[365222092,1749545441190,-460.0,0.00021369,4]
[365222093,1749545441200,-460.0,0.00021369,4]
[365222094,1749545441210,-1059.16,0.00021369,4]
[365222095,1749545441219,-460.0,0.00021369,4]
[365222096,1749545441229,-460.0,0.00021369,4]
[365222097,1749545441239,-460.0,0.00021369,4]
[365222098,1749545441249,-460.0,0.00021369,4]
[365222099,1749545441259,-992.63,0.00021369,4]
[365222100,1749545441269,-460.0,0.00021369,4]
[365222101,1749545441279,-460.0,0.00021369,4]
[365222102,1749545441288,-460.0,0.00021369,4]
[365222103,1749545441299,-460.0,0.00021369,4]
[365222104,1749545441319,-392.76347579,0.00021369,4]
[365222105,1749545441329,-666.08,0.00021369,4]
[365222106,1749545441339,-460.0,0.00021369,4]
[365222107,1749545441348,-460.0,0.00021369,4]
[365222108,1749545441358,-1081.99,0.00021369,4]
[365222109,1749545441367,-440.0,0.00021369,4]
[365222110,1749545441377,-420.0,0.00021369,4]
[365222111,1749545441388,-460.0,0.00021369,4]
[365222112,1749545441397,-460.0,0.00021369,4]
[365222113,1749545441407,-460.0,0.00021369,4]
[365222114,1749545441416,-460.0,0.00021369,4]
[365222115,1749545441426,-460.0,0.00021369,4]